bitfinex/quotes_BTCUSD_20241117
["timestamp","ask_amount","ask_price","bid_price","bid_amount"]
[1731823291247,0.0008559,90486.0,90485.0,0.11708272]
[1731823291456,0.0008559,90486.0,90485.0,0.16818467]
[1731823291679,0.0008559,90486.0,90485.0,0.16597454]
[1731823291889,0.0008559,90486.0,90485.0,0.17149978]
[1731823294550,0.0008559,90486.0,90485.0,0.17149958]
[1731823295576,0.0008559,90486.0,90485.0,0.35276217]
[1731823295780,0.0008559,90486.0,90485.0,0.35055219]
[1731823295934,0.16610429,90496.0,90487.0,0.005]
[1731823296117,0.16610429,90496.0,90495.0,0.110503]
[1731823296323,0.16610429,90496.0,90495.0,0.11948153]
[1731823296524,0.16610429,90496.0,90495.0,0.13699836]
[1731823296525,0.000856,90496.0,90495.0,0.13699836]
[1731823296964,0.040912,90504.0,90495.0,0.13699836]
[1731823297246,0.110495,90502.0,90496.0,0.02339228]
[1731823297443,0.040912,90504.0,90488.0,0.221023]
[1731823297444,0.040912,90504.0,90497.0,0.02648544]
[1731823297646,0.110498,90499.0,90498.0,0.02339228]
[1731823298101,0.110498,90499.0,90498.0,0.02339023]
[1731823298357,0.110498,90499.0,90498.0,0.01786488]
[1731823298527,0.110498,90499.0,90498.0,0.00897828]
[1731823298727,0.110498,90499.0,90498.0,0.00345318]
[1731823299705,0.15497448,90499.0,90498.0,0.00345318]
[1731823300906,0.15497448,90499.0,90498.0,0.0089783]
[1731823301130,0.110498,90499.0,90498.0,0.0089783]
[1731823302409,0.110496,90501.0,90498.0,0.0089783]
[1731823302616,0.0417678,90504.0,90499.0,0.0089783]
[1731823302820,0.0417678,90504.0,90500.0,0.0089783]
[1731823303044,0.1522598,90504.0,90501.0,0.0089783]
[1731823303254,0.1522598,90504.0,90497.0,0.1105]
[1731823303255,0.1522598,90504.0,90502.0,0.01204981]
[1731823303484,0.1522598,90504.0,90503.0,0.00345318]
[1731823303700,0.1522598,90504.0,90503.0,0.00897792]
[1731823303911,0.1522598,90504.0,90503.0,0.01204537]
[1731823304134,0.1522598,90504.0,90503.0,0.00345318]
[1731823304351,0.0417678,90504.0,90503.0,0.00345318]
[1731823305155,0.0417678,90504.0,90503.0,0.00652063]
[1731823305547,0.0417678,90504.0,90503.0,0.00306745]
[1731823305754,0.1522598,90504.0,90503.0,0.00345292]
[1731823306662,0.1522598,90504.0,90503.0,0.00651784]
[1731823307094,0.0417678,90504.0,90503.0,0.01204251]
[1731823307315,0.0417678,90504.0,90503.0,0.00651784]
[1731823307937,0.0417678,90504.0,90503.0,0.00897759]
[1731823308143,0.0417678,90504.0,90503.0,0.00651368]
[1731823308465,0.0417678,90504.0,90503.0,0.00651366]
[1731823308638,0.0417678,90504.0,90503.0,0.01203831]
[1731823309078,0.0417678,90504.0,90503.0,0.00289072]
[1731823309525,0.0417678,90504.0,90499.0,0.110497]
[1731823309753,0.0417678,90504.0,90503.0,0.00289072]
[1731823310000,0.0417678,90504.0,90497.0,0.1105]
[1731823310233,0.0008558,90504.0,90503.0,0.00289072]
[1731823310635,0.0008558,90504.0,90498.0,0.110499]
[1731823310842,0.0008558,90504.0,90499.0,0.00289163]
[1731823311055,0.0008558,90504.0,90501.0,0.110495]
[1731823311262,0.0008558,90504.0,90502.0,0.00289095]
[1731823311471,0.1113478,90504.0,90502.0,0.00289095]
[1731823311779,0.1113478,90504.0,90503.0,0.0017114]
[1731823311880,0.1113478,90504.0,90503.0,0.01899285]
[1731823312098,0.1033478,90504.0,90503.0,0.01610609]
[1731823312315,0.1033478,90504.0,90503.0,0.01899285]
[1731823312536,0.1033478,90504.0,90503.0,0.01610609]
[1731823312797,0.1033478,90504.0,90503.0,0.0017114]
[1731823313256,0.1033478,90504.0,90503.0,0.02425267]
[1731823313467,0.1033478,90504.0,90503.0,0.02713943]
[1731823313707,0.1033478,90504.0,90503.0,0.04153719]
[1731823314357,0.110492,90504.0,90503.0,0.04153719]
[1731823314787,0.110492,90504.0,90503.0,0.03865043]
[1731823315125,0.110492,90504.0,90503.0,0.038653]
[1731823318587,0.110492,90504.0,90503.0,0.02425267]
[1731823318717,0.110492,90504.0,90503.0,0.03866308]
[1731823318941,0.11872516,90504.0,90503.0,0.01612181]
[1731823319143,0.11872516,90504.0,90503.0,0.02164658]
[1731823319144,0.110492,90504.0,90503.0,0.02164658]
[1731823319350,0.11872516,90504.0,90503.0,0.02164658]
[1731823321139,0.11872636,90504.0,90503.0,0.02510456]
[1731823322902,0.1405273,90504.0,90503.0,0.02510456]
[1731823323884,0.13314864,90504.0,90503.0,0.02510979]
[1731823324075,0.14138611,90504.0,90503.0,0.02510979]
[1731823324313,0.14138601,90504.0,90503.0,0.02510964]
[1731823324778,0.14138601,90504.0,90503.0,0.01068915]
[1731823325509,0.11958507,90504.0,90503.0,0.01068915]
[1731823325723,0.11958507,90504.0,90503.0,0.02511309]
[1731823326847,0.11958507,90504.0,90503.0,0.01068915]
[1731823327418,0.11158973,90504.0,90503.0,0.0017114]
[1731823327470,0.11158973,90504.0,90503.0,0.01068904]
[1731823327698,0.11158973,90504.0,90503.0,0.02511328]
[1731823328362,0.11158973,90504.0,90503.0,0.02465628]
[1731823330476,0.1033477,90504.0,90503.0,0.02465628]
[1731823330600,0.11159074,90504.0,90503.0,0.02465628]
[1731823331835,0.11159074,90504.0,90503.0,0.0477453]
[1731823333420,0.00909874,90504.0,90503.0,0.0477453]
[1731823333629,0.11959074,90504.0,90503.0,0.0477453]
[1731823334098,0.11959074,90504.0,90503.0,0.04775479]
[1731823337822,0.11959074,90504.0,90503.0,0.04775478]
[1731823338491,0.00909874,90504.0,90503.0,0.04775478]
[1731823338702,0.050456,90509.0,90503.0,0.15824778]
[1731823338920,0.050456,90509.0,90504.0,0.04650038]
[1731823339156,0.050456,90509.0,90505.0,0.04650038]
[1731823339363,0.050456,90509.0,90506.0,0.04650038]
[1731823339575,0.000856,90509.0,90507.0,0.04650038]
[1731823339784,0.000856,90509.0,90508.0,0.04913963]
[1731823339990,0.000856,90509.0,90508.0,0.06959355]
[1731823340285,0.000856,90509.0,90508.0,0.04925605]
[1731823342010,0.041056,90514.0,90508.0,0.04925605]
[1731823342229,0.0008558,90518.0,90510.0,0.00263689]
[1731823342472,0.0008558,90518.0,90512.0,0.110482]
[1731823342694,0.0008558,90518.0,90513.0,0.04924356]
[1731823342898,0.0008558,90518.0,90514.0,0.05340383]
[1731823343355,0.0008558,90518.0,90514.0,0.05614784]
[1731823343958,0.0008558,90518.0,90514.0,0.04026679]
[1731823344052,0.0008558,90518.0,90514.0,0.08496593]
[1731823345279,0.1113308,90518.0,90514.0,0.08496593]
[1731823345902,0.1113308,90518.0,90514.0,0.04924265]
[1731823346541,0.0008558,90518.0,90514.0,0.04924265]
[1731823347024,0.110476,90517.0,90514.0,0.04924265]
[1731823347684,0.110476,90517.0,90514.0,0.04649864]
[1731823347892,0.110476,90517.0,90514.0,0.0492438]
[1731823348811,0.0008558,90518.0,90514.0,0.0492438]
[1731823349260,0.1113339,90515.0,90514.0,0.0492438]
[1731823349496,0.0008559,90515.0,90514.0,0.04649864]
[1731823349702,0.0008559,90515.0,90514.0,0.04923572]
[1731823349935,0.0008559,90515.0,90514.0,0.00273708]
[1731823350158,0.0008559,90515.0,90514.0,0.0491526]
[1731823350376,0.0008559,90515.0,90514.0,0.04641552]
[1731823350628,0.0008559,90515.0,90514.0,0.04915301]
[1731823353306,0.0008559,90515.0,90514.0,0.04915306]
[1731823353660,0.0008559,90515.0,90514.0,0.04915291]
[1731823355099,0.0008559,90515.0,90514.0,0.04915279]
[1731823356401,0.0008559,90515.0,90514.0,0.0401766]
[1731823356617,0.0008559,90515.0,90514.0,0.04915279]
[1731823357056,0.1033319,90517.0,90514.0,0.04915279]
[1731823357272,0.110478,90516.0,90515.0,0.0464153]
[1731823357479,0.0008558,90518.0,90515.0,0.04641757]
[1731823357687,0.0008558,90518.0,90508.0,0.04927515]
[1731823357688,0.110476,90517.0,90516.0,0.04641757]
[1731823358591,0.0008557,90515.0,90509.0,0.110485]
[1731823358736,0.0008557,90515.0,90510.0,0.02337698]
[1731823358953,0.0008557,90515.0,90511.0,0.0464201]
[1731823359163,0.0008557,90515.0,90510.0,0.00257736]
[1731823359164,0.0008557,90515.0,90513.0,0.005]
[1731823359358,0.0008557,90515.0,90514.0,0.1569001]
[1731823359565,0.0008557,90515.0,90514.0,0.04899655]
[1731823359992,0.0008557,90515.0,90514.0,0.01155251]
[1731823360042,0.0008557,90515.0,90514.0,0.04899847]
[1731823360256,0.0008557,90515.0,90514.0,0.15947847]
[1731823360495,0.0008557,90515.0,90514.0,0.04899847]
[1731823360981,0.0008557,90515.0,90514.0,0.15947847]
[1731823361213,0.0008557,90515.0,90514.0,0.27695553]
[1731823361410,0.0008557,90515.0,90514.0,0.15947847]
[1731823361623,0.0008557,90515.0,90514.0,0.04899847]
[1731823363035,0.0008557,90515.0,90514.0,0.01155251]
[1731823363217,0.0008557,90515.0,90514.0,0.04900647]
[1731823363573,0.0008557,90515.0,90514.0,0.03460382]
[1731823363683,0.0008557,90515.0,90514.0,0.04901047]
[1731823365525,0.0008557,90515.0,90514.0,0.04003449]
[1731823365766,0.0008557,90515.0,90514.0,0.04901047]
[1731823366486,0.0008557,90515.0,90514.0,0.04902949]
[1731823368281,0.0008558,90518.0,90514.0,0.05163658]
[1731823368524,0.0008558,90518.0,90515.0,0.04906013]
[1731823368727,0.0008558,90518.0,90516.0,0.04645304]
[1731823368961,0.0008558,90518.0,90517.0,0.04645304]
[1731823369319,0.0008558,90518.0,90517.0,0.04902271]
[1731823369588,0.1113308,90518.0,90517.0,0.04645304]
[1731823369739,0.1113308,90518.0,90517.0,0.04902222]
[1731823369902,0.1113308,90518.0,90517.0,0.04645304]
[1731823372007,0.1113308,90518.0,90508.0,0.15476115]
[1731823372008,0.0494,90510.0,90500.0,0.110496]
[1731823372116,0.0494,90510.0,90505.0,0.16524829]
[1731823372117,0.102487,90508.0,90505.0,0.16524829]
[1731823372283,0.102487,90508.0,90501.0,0.002571]
[1731823372505,0.102487,90508.0,90506.0,0.00256941]
[1731823372804,0.102487,90508.0,90507.0,0.00256918]
[1731823373251,0.102487,90508.0,90500.0,0.15599389]
[1731823373459,0.0774,90509.0,90495.0,0.1]
[1731823373550,0.0494,90504.0,90501.0,0.00257203]
[1731823373804,0.0774,90501.0,90493.0,0.1]
[1731823374230,0.0774,90501.0,90494.0,0.00257708]
[1731823374231,0.110501,90497.0,90494.0,0.00257708]
[1731823374452,0.110502,90496.0,90494.0,0.00257708]
[1731823374897,0.0494,90495.0,90489.0,0.11051]
[1731823375112,0.0494,90495.0,90490.0,0.1]
[1731823375376,0.0494,90495.0,90490.0,0.10257662]
[1731823375596,0.159903,90495.0,90490.0,0.10257662]
[1731823376372,0.0494,90495.0,90490.0,0.12005368]
[1731823376442,0.1268,90501.0,90493.0,0.1]
[1731823376666,0.1268,90501.0,90493.0,0.10220989]
[1731823376852,0.110499,90498.0,90494.0,0.00258687]
[1731823377054,0.110497,90500.0,90494.0,0.00258687]
[1731823377275,0.110498,90499.0,90494.0,0.00258687]
[1731823377915,0.1268,90501.0,90491.0,0.1]
[1731823378139,0.1105,90498.0,90495.0,0.00258597]
[1731823378378,0.220994,90500.0,90487.0,0.221025]
[1731823378379,0.11747706,90497.0,90487.0,0.00260743]
[1731823378639,0.11747706,90497.0,90479.0,0.00171]
[1731823378640,0.11747706,90497.0,90496.0,0.00258786]
[1731823378641,0.1649,90497.0,90496.0,0.00258786]
[1731823378853,0.1649,90497.0,90485.0,0.00431903]
[1731823378854,0.237314,90486.0,90485.0,0.0017116]
[1731823379719,0.242314,90486.0,90485.0,0.0017116]
[1731823379948,0.35979106,90486.0,90485.0,0.0017116]
[1731823380600,0.242314,90486.0,90485.0,0.0017116]
[1731823380834,0.24452383,90486.0,90485.0,0.0017116]
[1731823381513,0.242314,90486.0,90485.0,0.0017116]
[1731823381983,0.242314,90486.0,90485.0,0.00723767]
[1731823382409,0.242314,90486.0,90485.0,0.0017116]
[1731823382410,0.272314,90486.0,90485.0,0.0017116]
[1731823383861,0.272314,90486.0,90485.0,0.00516541]
[1731823384053,0.38979106,90486.0,90485.0,0.00516541]
[1731823384913,0.49885361,90486.0,90485.0,0.00516541]
[1731823385266,0.49885361,90486.0,90485.0,0.0017116]
[1731823387094,0.49085361,90486.0,90485.0,0.0017116]
[1731823387297,0.51385361,90486.0,90485.0,0.0017116]
[1731823388360,0.63633067,90486.0,90485.0,0.0017116]
[1731823388592,0.51885361,90486.0,90485.0,0.0017116]
[1731823390458,0.40137655,90486.0,90485.0,0.0017116]
[1731823390663,0.37837655,90486.0,90485.0,0.0017116]
[1731823392339,0.40137655,90486.0,90485.0,0.0017116]
[1731823393136,0.37837655,90486.0,90485.0,0.0017116]
[1731823394193,0.40137655,90486.0,90485.0,0.0017116]
[1731823397176,0.39637655,90486.0,90485.0,0.0017116]
[1731823397408,0.40137655,90486.0,90485.0,0.0017116]
[1731823397610,0.39637655,90486.0,90485.0,0.0017116]
[1731823397807,0.40137655,90486.0,90485.0,0.0017116]
[1731823398451,0.39637655,90486.0,90485.0,0.0017116]
[1731823398769,0.40137655,90486.0,90485.0,0.0017116]
[1731823400395,0.40137655,90486.0,90485.0,0.00516549]
[1731823401854,0.39637655,90486.0,90485.0,0.00516549]
[1731823402061,0.38837655,90486.0,90485.0,0.00516549]
[1731823402275,0.39337655,90486.0,90485.0,0.00516549]
[1731823404422,0.274314,90486.0,90485.0,0.00516549]
[1731823404505,0.274314,90486.0,90485.0,0.02494807]
[1731823404506,0.256314,90486.0,90485.0,0.02494807]
[1731823404695,0.37379106,90486.0,90485.0,0.02494807]
[1731823406455,0.36879106,90486.0,90485.0,0.02494807]
[1731823407308,0.37379106,90486.0,90485.0,0.05469937]
[1731823407542,0.37379106,90486.0,90485.0,0.05469924]
[1731823408223,0.37379106,90486.0,90485.0,0.04779155]
[1731823408464,0.37379106,90486.0,90485.0,0.05469924]
[1731823409873,0.36879106,90486.0,90485.0,0.05469924]
[1731823410350,0.251314,90486.0,90485.0,0.05469924]
[1731823410793,0.251314,90486.0,90485.0,0.05469915]
[1731823411287,0.251314,90486.0,90485.0,0.05475114]
[1731823411497,0.251314,90486.0,90485.0,0.0478435]
[1731823413373,0.03,90486.0,90485.0,0.0478435]
[1731823413607,0.140514,90486.0,90485.0,0.05052409]
[1731823414048,0.140514,90486.0,90485.0,0.0478435]
[1731823414293,0.11564828,90486.0,90485.0,0.08475064]
[1731823414537,0.221022,90489.0,90474.0,0.00258745]
[1731823414538,0.221023,90489.0,90474.0,0.00258745]
[1731823414752,0.221023,90489.0,90463.0,0.11747706]
[1731823414753,0.05273428,90486.0,90465.0,0.1]
[1731823414978,0.00513428,90482.0,90473.0,0.16524829]
[1731823415220,0.331552,90483.0,90466.0,0.00267951]
[1731823415221,0.110528,90475.0,90468.0,0.1]
[1731823415485,0.00513428,90474.0,90468.0,0.1]
[1731823415735,0.110531,90473.0,90468.0,0.1]
[1731823415991,0.00513428,90474.0,90464.0,0.04653557]
[1731823415992,0.00513428,90466.0,90464.0,0.0017124]
[1731823416212,0.16327328,90465.0,90464.0,0.0017124]
[1731823416438,0.24627328,90465.0,90464.0,0.0017124]
[1731823417177,0.23827328,90465.0,90464.0,0.0017124]
[1731823419008,0.00513428,90465.0,90464.0,0.0017124]
[1731823419219,0.00513428,90466.0,90464.0,0.0017124]
[1731823419477,0.110539,90465.0,90464.0,0.0017124]
[1731823419688,0.00513428,90465.0,90464.0,0.0017124]
[1731823420101,0.00513428,90466.0,90464.0,0.0017124]
[1731823420310,0.00513428,90465.0,90464.0,0.0017124]
[1731823421225,0.00513428,90466.0,90464.0,0.0017124]
[1731823422079,0.11567328,90466.0,90464.0,0.0017124]
[1731823422284,0.11567328,90466.0,90465.0,0.00269443]
[1731823422518,0.11567328,90465.0,90464.0,0.0017124]
[1731823422733,0.00513428,90465.0,90464.0,0.00440683]
[1731823423671,0.00513428,90466.0,90464.0,0.00440683]
[1731823424096,0.00513428,90466.0,90464.0,0.0017124]
[1731823424537,0.00513428,90466.0,90465.0,0.02808698]
[1731823424780,0.00513428,90466.0,90465.0,0.03078141]
[1731823425644,0.11567228,90466.0,90465.0,0.03078141]
[1731823426091,0.11567228,90466.0,90465.0,0.02808698]
[1731823426550,0.11567228,90466.0,90465.0,0.0456399]
[1731823427381,0.11567228,90466.0,90465.0,0.03665879]
[1731823427445,0.11567228,90466.0,90465.0,0.0230798]
[1731823428560,0.11567228,90466.0,90465.0,0.04563677]
[1731823428783,0.00513428,90466.0,90465.0,0.04734857]
[1731823429018,0.11567228,90466.0,90465.0,0.04734857]
[1731823429239,0.11567228,90466.0,90465.0,0.05005205]
[1731823429454,0.11567228,90466.0,90465.0,0.0247916]
[1731823431049,0.11567228,90466.0,90465.0,0.02749508]
[1731823432060,0.13767228,90466.0,90465.0,0.02749508]
[1731823432285,0.13767228,90466.0,90465.0,0.0247916]
[1731823432491,0.13767228,90466.0,90465.0,0.02749529]
[1731823433494,0.13767228,90466.0,90465.0,0.0247916]
[1731823434251,0.13767228,90466.0,90465.0,0.02749508]
[1731823435321,0.13767228,90466.0,90465.0,0.0247916]
[1731823435530,0.13767228,90466.0,90465.0,0.02749508]
[1731823436862,0.13767228,90466.0,90465.0,0.0247916]
[1731823439486,0.26217228,90466.0,90465.0,0.0247916]
[1731823440520,0.26302838,90466.0,90465.0,0.0247916]
[1731823440874,0.26302838,90466.0,90465.0,0.0017118]
[1731823440981,0.26302838,90466.0,90465.0,0.02479392]
[1731823445793,0.26302838,90466.0,90465.0,0.01581234]
[1731823446005,0.26302838,90466.0,90465.0,0.02479402]
[1731823447163,0.25502838,90466.0,90465.0,0.02479402]
[1731823451038,0.25502838,90466.0,90465.0,0.01581234]
[1731823451241,0.25502838,90466.0,90465.0,0.02479412]
[1731823451669,0.51677782,90466.0,90465.0,0.02479412]
[1731823451907,0.51456799,90466.0,90465.0,0.02479412]
[1731823452116,0.51456799,90466.0,90465.0,0.01926687]
[1731823452349,0.51456799,90466.0,90465.0,0.0017118]
[1731823453467,0.55986301,90466.0,90465.0,0.0017118]
[1731823457028,0.55986301,90466.0,90465.0,0.00516664]
[1731823458350,0.55986301,90466.0,90465.0,0.0017118]
[1731823461348,0.44238595,90466.0,90465.0,0.0017118]
[1731823462204,0.43438595,90466.0,90465.0,0.0017118]
[1731823462640,0.43438595,90466.0,90465.0,0.00516659]
[1731823463273,0.25202838,90466.0,90465.0,0.00516659]
[1731823463701,0.25702838,90466.0,90465.0,0.00516659]
[1731823463914,0.25202838,90466.0,90465.0,0.00516659]
[1731823465684,0.25702838,90466.0,90465.0,0.00516659]
[1731823468101,0.25702838,90466.0,90465.0,0.01069394]
[1731823468518,0.25702838,90466.0,90465.0,0.02479687]
[1731823468729,0.25702838,90466.0,90465.0,0.01069394]
[1731823468934,0.25702838,90466.0,90465.0,0.02479687]
[1731823471856,0.25702838,90466.0,90465.0,0.01069394]
[1731823472735,0.25702838,90466.0,90465.0,0.01069363]
[1731823473138,0.25702838,90466.0,90465.0,0.00516635]
[1731823473361,0.26747724,90466.0,90465.0,0.00516635]
[1731823473572,0.25923821,90466.0,90465.0,0.00516635]
[1731823473986,0.26747724,90466.0,90465.0,0.00516635]
[1731823474193,0.25923821,90466.0,90465.0,0.00516635]
[1731823474397,0.26747724,90466.0,90465.0,0.00516635]
[1731823475055,0.25923821,90466.0,90465.0,0.00516635]
[1731823475499,0.26747724,90466.0,90465.0,0.00516635]
[1731823475717,0.25923821,90466.0,90465.0,0.00516635]
[1731823476371,0.26747724,90466.0,90465.0,0.00516635]
[1731823476616,0.25923821,90466.0,90465.0,0.00516635]
[1731823476818,0.26747724,90466.0,90465.0,0.00516635]
[1731823477075,0.25947724,90466.0,90465.0,0.00516635]
[1731823477952,0.38653979,90466.0,90465.0,0.00516635]
[1731823478168,0.38932996,90466.0,90465.0,0.0017118]
[1731823479328,0.38933424,90466.0,90465.0,0.0017118]
[1731823479588,0.38109093,90466.0,90465.0,0.0017118]
[1731823479866,0.38933426,90466.0,90465.0,0.0017118]
[1731823479982,0.38109093,90466.0,90465.0,0.0017118]
[1731823485865,0.38109093,90466.0,90465.0,0.0051666]
[1731823486088,0.38109093,90466.0,90465.0,0.0017118]
[1731823486510,0.38109093,90466.0,90465.0,0.0051666]
[1731823486922,0.38109093,90466.0,90465.0,0.0017118]
[1731823487368,0.38109093,90466.0,90465.0,0.00516659]
[1731823489406,0.38109093,90466.0,90465.0,0.00516651]
[1731823489886,0.24902838,90466.0,90465.0,0.00516649]
[1731823492154,0.1653561,90466.0,90465.0,0.00516649]
[1731823492382,0.2758941,90466.0,90465.0,0.00516649]
[1731823492758,0.2708941,90466.0,90465.0,0.00516649]
[1731823495924,0.2708941,90466.0,90465.0,0.01069361]
[1731823498766,0.2708941,90466.0,90465.0,0.00516649]
[1731823499884,0.2708941,90466.0,90465.0,0.01069364]
[1731823501750,0.2708941,90466.0,90465.0,0.0017118]
[1731823501871,0.2708941,90466.0,90465.0,0.01069342]
[1731823503522,0.2708941,90466.0,90465.0,0.00516627]
[1731823504689,0.41016648,90466.0,90465.0,0.00516627]
[1731823504947,0.40795665,90466.0,90465.0,0.0017118]
[1731823505614,0.50693687,90466.0,90465.0,0.0017118]
[1731823506309,0.40795665,90466.0,90465.0,0.0017118]
[1731823507198,0.49893422,90466.0,90465.0,0.0017118]
[1731823507492,0.39995665,90466.0,90465.0,0.0017118]
[1731823507687,0.49893422,90466.0,90465.0,0.0017118]
[1731823508357,0.49893052,90466.0,90465.0,0.0017118]
[1731823508684,0.54342149,90466.0,90465.0,0.0017118]
[1731823510558,0.44444762,90466.0,90465.0,0.0017118]
[1731823511009,0.54342149,90466.0,90465.0,0.0017118]
[1731823511272,0.44444762,90466.0,90465.0,0.0017118]
[1731823511502,0.54342149,90466.0,90465.0,0.0017118]
[1731823511953,0.44444762,90466.0,90465.0,0.0017118]
[1731823522135,0.43644762,90466.0,90465.0,0.0017118]
[1731823529237,0.43644762,90466.0,90465.0,0.00516667]
[1731823529425,0.43644762,90466.0,90465.0,0.0017118]
[1731823529644,0.43644762,90466.0,90465.0,0.0051667]
[1731823530507,0.43644762,90466.0,90465.0,0.0017118]
[1731823530968,0.43644762,90466.0,90465.0,0.00516662]
[1731823531992,0.43644762,90466.0,90465.0,0.0051666]
[1731823535374,0.43644762,90466.0,90465.0,0.00516665]
[1731823535497,0.43644762,90466.0,90465.0,0.01928864]
[1731823535944,0.43644762,90466.0,90465.0,0.01928863]
[1731823536183,0.43644762,90466.0,90465.0,0.00516665]
[1731823537056,0.42844762,90466.0,90465.0,0.00516665]
[1731823537491,0.42844762,90466.0,90465.0,0.01928863]
[1731823537701,0.42844762,90466.0,90465.0,0.04928863]
[1731823538339,0.42844762,90466.0,90465.0,0.03516665]
[1731823539000,0.42844762,90466.0,90465.0,0.03516667]
[1731823539448,0.42844762,90466.0,90465.0,0.04928914]
[1731823541037,0.42844762,90466.0,90465.0,0.0317118]
[1731823541244,0.42844762,90466.0,90465.0,0.03516664]
[1731823542229,0.42844762,90466.0,90465.0,0.04583554]
[1731823542448,0.42844762,90466.0,90465.0,0.03862144]
[1731823542615,0.42844762,90466.0,90465.0,0.05274583]
[1731823544204,0.42844762,90466.0,90465.0,0.04929101]
[1731823544397,0.42844762,90466.0,90465.0,0.04583619]
[1731823544601,0.42844762,90466.0,90465.0,0.0017118]
[1731823544951,0.54592468,90466.0,90465.0,0.0017118]
[1731823545160,0.54592468,90466.0,90464.0,0.0017124]
[1731823545161,0.382839,90465.0,90464.0,2e-07]
[1731823545366,0.382839,90465.0,90459.0,0.0017124]
[1731823545367,0.257846,90460.0,90459.0,0.0017124]
[1731823545641,1.12799854,90460.0,90459.0,0.0017124]
[1731823545843,1.42248581,90460.0,90459.0,0.0017124]
[1731823546063,1.12578871,90460.0,90459.0,0.0017124]
[1731823546305,1.42231055,90460.0,90459.0,0.0017124]
[1731823547098,1.12578871,90460.0,90459.0,0.0017124]
[1731823547680,1.00831165,90460.0,90459.0,0.0017124]
[1731823548165,0.99331165,90460.0,90459.0,0.0017124]
[1731823548562,1.02037381,90460.0,90459.0,0.0017124]
[1731823548658,0.86654554,90460.0,90459.0,0.0017124]
[1731823548862,0.47990855,90460.0,90459.0,0.0017124]
[1731823549103,0.62809835,90460.0,90459.0,0.0017124]
[1731823549317,0.47990855,90460.0,90459.0,0.0017124]
[1731823552107,0.50190855,90460.0,90459.0,0.0017124]
[1731823552646,0.40190855,90460.0,90459.0,0.0017124]
[1731823554697,0.37890855,90460.0,90459.0,0.0017124]
[1731823557031,0.37890855,90460.0,90459.0,0.0317124]
[1731823559355,0.38090855,90460.0,90459.0,0.0317124]
[1731823560203,0.37890855,90460.0,90459.0,0.0317124]
[1731823560924,0.38090855,90460.0,90459.0,0.0317124]
[1731823561137,0.38090855,90460.0,90459.0,0.0017124]
[1731823561333,0.38090855,90460.0,90459.0,0.0317124]
[1731823562289,0.38090855,90460.0,90459.0,0.0017124]
[1731823563232,0.62011881,90460.0,90459.0,0.0017124]
[1731823563414,0.52138561,90460.0,90459.0,0.0017124]
[1731823563544,0.40390855,90460.0,90459.0,0.0017124]
[1731823563969,0.52138561,90460.0,90459.0,0.0017124]
[1731823563976,0.40390855,90460.0,90459.0,0.0017124]
[1731823566777,0.52138561,90460.0,90459.0,0.0017124]
[1731823566972,0.71885201,90460.0,90459.0,0.0017124]
[1731823567184,0.87760152,90460.0,90459.0,0.0017124]
[1731823567435,0.012,90440.0,90439.0,0.0095984]
[1731823567651,0.012,90440.0,90427.0,0.001713]
[1731823567652,0.356679,90433.0,90427.0,0.001713]
[1731823567857,0.50694155,90433.0,90427.0,0.001713]
[1731823568089,0.62941861,90433.0,90427.0,0.001713]
[1731823568356,0.72805387,90433.0,90427.0,0.001713]
[1731823568586,0.62941861,90433.0,90427.0,0.001713]
[1731823569265,0.6744844,90433.0,90427.0,0.001713]
[1731823569633,0.7946852,90433.0,90427.0,0.001713]
[1731823569708,0.69612936,90433.0,90427.0,0.001713]
[1731823570145,0.7946852,90433.0,90427.0,0.001713]
[1731823570588,0.69612936,90433.0,90427.0,0.001713]
[1731823572490,0.69112936,90433.0,90427.0,0.001713]
[1731823572919,0.5716523,90433.0,90427.0,0.001713]
[1731823573133,0.55000734,90433.0,90427.0,0.001713]
[1731823573364,0.52700734,90433.0,90427.0,0.001713]
[1731823574497,0.52900734,90433.0,90427.0,0.001713]
[1731823574736,0.52700734,90433.0,90427.0,0.001713]
[1731823576611,0.42700734,90433.0,90427.0,0.001713]
[1731823581379,0.25464155,90433.0,90427.0,0.001713]
[1731823581598,0.26185138,90433.0,90427.0,0.001713]
[1731823581792,0.25685138,90433.0,90427.0,0.001713]
[1731823582012,0.24885138,90433.0,90427.0,0.001713]
[1731823582686,0.25385138,90433.0,90427.0,0.001713]
[1731823586967,0.137579,90433.0,90427.0,0.001713]
[1731823587162,0.03,90436.0,90430.0,0.11747706]
[1731823587423,0.03,90433.0,90432.0,0.00555277]
[1731823587624,0.03,90433.0,90432.0,0.0474312]
[1731823587821,0.03,90433.0,90432.0,0.02308283]
[1731823588237,0.03,90433.0,90432.0,0.12648383]
[1731823588652,0.03,90433.0,90432.0,0.14056213]
[1731823589072,0.03,90433.0,90432.0,0.14609097]
[1731823590758,0.03,90433.0,90432.0,0.25667097]
[1731823591680,0.03,90433.0,90432.0,0.47783097]
[1731823592106,0.03,90433.0,90432.0,0.46884695]
[1731823592287,0.03,90433.0,90432.0,0.47437541]
[1731823592516,0.03,90433.0,90432.0,0.47783069]
[1731823592678,0.03,90433.0,90432.0,0.50035565]
[1731823592853,0.03,90433.0,90432.0,0.56210344]
[1731823593280,0.03,90433.0,90432.0,0.34094344]
[1731823593488,0.03,90433.0,90432.0,0.34094346]
[1731823595620,0.03,90433.0,90432.0,0.30943474]
[1731823595814,0.02970696,90433.0,90432.0,0.34093182]
[1731823597062,0.02170696,90433.0,90432.0,0.34093182]
[1731823597269,0.02170696,90433.0,90432.0,0.23035182]
[1731823597481,0.02170696,90433.0,90432.0,0.05112697]
[1731823597616,0.02170696,90433.0,90432.0,0.02307988]
[1731823598014,0.02170696,90433.0,90432.0,0.01924193]
[1731823598435,0.02170696,90433.0,90432.0,0.02319817]
[1731823598702,0.02170696,90433.0,90432.0,0.02872666]
[1731823598918,0.02170696,90433.0,90432.0,0.02319817]
[1731823600192,0.02256306,90433.0,90432.0,0.02319817]
[1731823602935,0.02256306,90433.0,90432.0,0.02319829]
[1731823604454,0.02256306,90433.0,90432.0,0.02319839]
[1731823604655,0.02256306,90433.0,90432.0,0.0051684]
[1731823604891,0.02256306,90433.0,90432.0,0.00912197]
[1731823605736,0.18284206,90433.0,90432.0,0.00566657]
[1731823606172,0.18284206,90433.0,90432.0,0.001713]
[1731823606664,0.18284206,90433.0,90432.0,0.0158085]
[1731823607098,0.18284206,90433.0,90432.0,0.01926428]
[1731823607313,0.18284206,90433.0,90432.0,0.03336078]
[1731823607977,0.07226306,90433.0,90432.0,0.03336078]
[1731823608186,0.02256306,90433.0,90432.0,0.03336078]
[1731823608435,0.02256306,90433.0,90432.0,0.32316563]
[1731823608636,0.02256306,90433.0,90432.0,0.33265472]
[1731823608961,0.02256306,90433.0,90432.0,0.33265845]
[1731823609278,0.02256306,90433.0,90432.0,0.35521961]
[1731823609496,0.02256306,90433.0,90432.0,0.46428216]